[Event "Live Chess"]
[Site "Chess.com"]
[Date "2024.06.01"]
[Round "-"]
[White "Bradfield133"]
[Black "MellowAesthetic"]
[Result "0-1"]
[WhiteElo "1975"]
[BlackElo "2074"]
[TimeControl "300"]
[EndTime "11:37:47 PDT"]
[Termination "MellowAesthetic won on time"]

1. c4 {[%clk 0:04:57.9]} 1... e5 {[%clk 0:04:58.5]} 2. g3 {[%clk 0:04:52.5]}
2... Nf6 {[%clk 0:04:56.8]} 3. Bg2 {[%clk 0:04:51.5]} 3... d5 {[%clk 0:04:56.2]}
4. cxd5 {[%clk 0:04:42.8]} 4... Nxd5 {[%clk 0:04:55.5]} 5. Nf3 {[%clk
0:04:39.9]} 5... Nc6 {[%clk 0:04:49.1]} 6. O-O {[%clk 0:04:38.3]} 6... Be6
{[%clk 0:04:39.5]} 7. d4 {[%clk 0:04:33.7]} 7... e4 {[%clk 0:04:21]} 8. Ne5
{[%clk 0:04:03.5]} 8... f5 {[%clk 0:04:02.8]} 9. Qa4 {[%clk 0:03:50.7]} 9... Qd6
{[%clk 0:03:58.7]} 10. Nxc6 {[%clk 0:03:45.1]} 10... bxc6 {[%clk 0:03:55.7]} 11.
Nc3 {[%clk 0:03:31.3]} 11... Be7 {[%clk 0:03:47.8]} 12. Nxd5 {[%clk 0:03:20.4]}
12... Qxd5 {[%clk 0:03:36.2]} 13. Bd2 {[%clk 0:03:04]} 13... O-O {[%clk
0:03:33.5]} 14. Rfc1 {[%clk 0:02:59.8]} 14... c5 {[%clk 0:03:26.9]} 15. Bc3
{[%clk 0:02:35.9]} 15... Rad8 {[%clk 0:03:03.2]} 16. dxc5 {[%clk 0:02:06.1]}
16... Bxc5 {[%clk 0:03:01.5]} 17. Rd1 {[%clk 0:02:02.8]} 17... Qc4 {[%clk
0:02:47.2]} 18. Qc2 {[%clk 0:01:42.9]} 18... Bb6 {[%clk 0:01:35.6]} 19. b3
{[%clk 0:01:33.2]} 19... Qc5 {[%clk 0:01:34]} 20. Rf1 {[%clk 0:01:21.5]} 20...
Bc8 {[%clk 0:00:59.3]} 21. Rac1 {[%clk 0:01:18.2]} 21... f4 {[%clk 0:00:54.8]}
22. Bxe4 {[%clk 0:01:07]} 22... fxg3 {[%clk 0:00:54.1]} 23. hxg3 {[%clk
0:01:04.6]} 23... Rxf2 {[%clk 0:00:30]} 24. Bxh7+ {[%clk 0:00:40.4]} 24... Kf7
{[%clk 0:00:11.8]} 25. Qg6+ {[%clk 0:00:31.8]} 25... Ke7 {[%clk 0:00:11.2]} 26.
Kh1 {[%clk 0:00:13.9]} 26... Rxf1+ {[%clk 0:00:10.3]} 27. Rxf1 {[%clk
0:00:10.1]} 27... Kd7 {[%clk 0:00:09.9]} 28. Qf7+ {[%clk 0:00:00.8]} 28... Qe7
{[%clk 0:00:09.6]} 0-1

[Event "Live Chess"]
[Site "Chess.com"]
[Date "2024.06.01"]
[Round "-"]
[White "hisaveliy"]
[Black "Richardallis"]
[Result "0-1"]
[WhiteElo "633"]
[BlackElo "2039"]
[TimeControl "300"]
[EndTime "11:37:55 PDT"]
[Termination "Richardallis won by checkmate"]

1. e4 {[%clk 0:04:57]} 1... d5 {[%clk 0:04:58.7]} 2. e5 {[%clk 0:04:55.4]} 2...
Bf5 {[%clk 0:04:57.4]} 3. Nf3 {[%clk 0:04:53.2]} 3... e6 {[%clk 0:04:56.8]} 4.
d4 {[%clk 0:04:50.1]} 4... c5 {[%clk 0:04:55.7]} 5. c3 {[%clk 0:04:41]} 5... Nc6
{[%clk 0:04:54.8]} 6. Nbd2 {[%clk 0:04:37.8]} 6... Bg4 {[%clk 0:04:52.6]} 7. h3
{[%clk 0:04:34.1]} 7... Bh5 {[%clk 0:04:50.2]} 8. g4 {[%clk 0:04:32.2]} 8... Bg6
{[%clk 0:04:49.1]} 9. Nb3 {[%clk 0:04:21.9]} 9... Qb6 {[%clk 0:04:44.2]} 10. Bd3
{[%clk 0:03:46.3]} 10... Bxd3 {[%clk 0:04:39.7]} 11. Qxd3 {[%clk 0:03:44.8]}
11... c4 {[%clk 0:04:38.5]} 12. Qc2 {[%clk 0:03:39.6]} 12... cxb3 {[%clk
0:04:37.3]} 13. Qxb3 {[%clk 0:03:38.9]} 13... Qxb3 {[%clk 0:04:35.9]} 14. axb3
{[%clk 0:03:38.3]} 14... Nge7 {[%clk 0:04:35]} 15. O-O {[%clk 0:03:33.2]} 15...
Ng6 {[%clk 0:04:26.7]} 16. b4 {[%clk 0:03:26.3]} 16... a6 {[%clk 0:04:24.7]} 17.
b5 {[%clk 0:03:21.3]} 17... Nb8 {[%clk 0:04:22.9]} 18. b4 {[%clk 0:03:10.3]}
18... Be7 {[%clk 0:04:14.3]} 19. Bd2 {[%clk 0:02:54]} 19... O-O {[%clk
0:04:10.9]} 20. bxa6 {[%clk 0:02:42.8]} 20... Rxa6 {[%clk 0:04:09.1]} 21. Rxa6
{[%clk 0:02:39.1]} 21... Nxa6 {[%clk 0:04:05.8]} 22. b5 {[%clk 0:02:34.8]} 22...
Nc7 {[%clk 0:04:04.8]} 23. b6 {[%clk 0:02:33.4]} 23... Na6 {[%clk 0:04:03.9]}
24. h4 {[%clk 0:02:23.5]} 24... Rc8 {[%clk 0:04:02.1]} 25. h5 {[%clk 0:02:20.6]}
25... Nf8 {[%clk 0:04:01.2]} 26. g5 {[%clk 0:02:17.2]} 26... Nd7 {[%clk
0:03:59]} 27. h6 {[%clk 0:02:03.7]} 27... g6 {[%clk 0:03:55.8]} 28. Ne1 {[%clk
0:01:50.1]} 28... Nxb6 {[%clk 0:03:53.8]} 29. Nd3 {[%clk 0:01:48.3]} 29... Nc4
{[%clk 0:03:52.1]} 30. Bc1 {[%clk 0:01:42]} 30... b5 {[%clk 0:03:50.2]} 31. Nc5
{[%clk 0:01:35.2]} 31... Bxc5 {[%clk 0:03:46.4]} 32. dxc5 {[%clk 0:01:34.3]}
32... Rxc5 {[%clk 0:03:43.8]} 33. Be3 {[%clk 0:01:32.1]} 33... Nxe3 {[%clk
0:03:42]} 34. fxe3 {[%clk 0:01:31.5]} 34... Rxc3 {[%clk 0:03:41]} 35. Re1 {[%clk
0:01:25]} 35... b4 {[%clk 0:03:39.3]} 36. e4 {[%clk 0:01:22]} 36... dxe4 {[%clk
0:03:31.9]} 37. Rxe4 {[%clk 0:01:19.5]} 37... b3 {[%clk 0:03:28.6]} 38. Ra4
{[%clk 0:01:16.5]} 38... Rc6 {[%clk 0:03:26.6]} 39. Ra1 {[%clk 0:00:59.2]} 39...
b2 {[%clk 0:03:25]} 40. Rb1 {[%clk 0:00:58.3]} 40... Rc1+ {[%clk 0:03:24.3]} 41.
Rxc1 {[%clk 0:00:51.8]} 41... bxc1=Q+ {[%clk 0:03:23]} 42. Kf2 {[%clk 0:00:51]}
42... Qf4+ {[%clk 0:03:21.3]} 43. Kg2 {[%clk 0:00:49.1]} 43... Qxg5+ {[%clk
0:03:20.5]} 44. Kf3 {[%clk 0:00:47.5]} 44... Qxe5 {[%clk 0:03:19.4]} 45. Kg4
{[%clk 0:00:46.6]} 45... Qh5+ {[%clk 0:03:17.3]} 46. Kf4 {[%clk 0:00:44.3]}
46... f6 {[%clk 0:03:16.2]} 47. Ke4 {[%clk 0:00:42.7]} 47... Nc7 {[%clk
0:03:13.7]} 48. Kd4 {[%clk 0:00:41.8]} 48... Kf7 {[%clk 0:03:12.5]} 49. Kc4
{[%clk 0:00:40.7]} 49... Qd5+ {[%clk 0:03:10.2]} 50. Kb4 {[%clk 0:00:38.6]}
50... Qb5+ {[%clk 0:03:09.1]} 51. Ka3 {[%clk 0:00:36.9]} 51... Nd5 {[%clk
0:03:07]} 52. Ka2 {[%clk 0:00:35.6]} 52... Nc3+ {[%clk 0:03:05.3]} 53. Ka3
{[%clk 0:00:34.1]} 53... Na4 {[%clk 0:03:01.5]} 54. Ka2 {[%clk 0:00:32.8]} 54...
Qb2# {[%clk 0:03:01.1]} 0-1

[Event "Live Chess"]
[Site "Chess.com"]
[Date "2024.06.01"]
[Round "-"]
[White "bonantagulo"]
[Black "Nazarenko_vital"]
[Result "1-0"]
[WhiteElo "2068"]
[BlackElo "1472"]
[TimeControl "300"]
[EndTime "11:38:03 PDT"]
[Termination "bonantagulo won on time"]

1. d4 {[%clk 0:04:44.4]} 1... Nf6 {[%clk 0:04:57.2]} 2. c4 {[%clk 0:04:41.5]}
2... e5 {[%clk 0:04:55.5]} 3. dxe5 {[%clk 0:04:40.1]} 3... Ng4 {[%clk
0:04:53.9]} 4. Bf4 {[%clk 0:04:38.1]} 4... Nc6 {[%clk 0:04:49.6]} 5. Nf3 {[%clk
0:04:35.3]} 5... Bb4+ {[%clk 0:04:48.2]} 6. Nbd2 {[%clk 0:04:31.7]} 6... Qe7
{[%clk 0:04:47]} 7. e3 {[%clk 0:04:23.1]} 7... Ngxe5 {[%clk 0:04:44.9]} 8. Be2
{[%clk 0:04:09.4]} 8... d6 {[%clk 0:04:38.6]} 9. O-O {[%clk 0:04:01.7]} 9...
Bxd2 {[%clk 0:04:33.5]} 10. Qxd2 {[%clk 0:03:51.1]} 10... Bg4 {[%clk 0:04:23.6]}
11. Nxe5 {[%clk 0:03:00.6]} 11... Nxe5 {[%clk 0:04:17.1]} 12. Bxe5 {[%clk
0:02:57.6]} 12... Bxe2 {[%clk 0:04:15.7]} 13. Bxd6 {[%clk 0:02:54.2]} 13... cxd6
{[%clk 0:03:57.5]} 14. Qxe2 {[%clk 0:02:51]} 14... O-O {[%clk 0:03:56.2]} 15.
Rfd1 {[%clk 0:02:47.7]} 15... f5 {[%clk 0:03:45.8]} 16. Qf3 {[%clk 0:02:30.8]}
16... Rad8 {[%clk 0:03:30.7]} 17. Rd5 {[%clk 0:02:28.6]} 17... g6 {[%clk
0:03:21.8]} 18. Rad1 {[%clk 0:02:27.4]} 18... Rf6 {[%clk 0:02:58.7]} 19. c5
{[%clk 0:02:22.1]} 19... Kg7 {[%clk 0:02:25.8]} 20. g3 {[%clk 0:02:10.2]} 20...
b6 {[%clk 0:02:14.3]} 21. b4 {[%clk 0:01:28]} 21... bxc5 {[%clk 0:01:47.7]} 22.
bxc5 {[%clk 0:01:26.2]} 22... Qb7 {[%clk 0:01:43.7]} 23. Qf4 {[%clk 0:01:15]}
23... Qa6 {[%clk 0:01:06.6]} 24. Rxd6 {[%clk 0:00:59.6]} 24... Rdxd6 {[%clk
0:01:00.7]} 25. Rxd6 {[%clk 0:00:53.7]} 25... Rxd6 {[%clk 0:00:45.9]} 26. cxd6
{[%clk 0:00:47.3]} 26... Kf6 {[%clk 0:00:32]} 27. Qd4+ {[%clk 0:00:34.8]} 27...
Ke6 {[%clk 0:00:30.8]} 28. d7 {[%clk 0:00:33.4]} 28... Qc6 {[%clk 0:00:17]} 29.
d8=Q {[%clk 0:00:28.8]} 29... Qc1+ {[%clk 0:00:08.7]} 30. Kg2 {[%clk 0:00:26.8]}
30... Qc6+ {[%clk 0:00:06.8]} 31. Kh3 {[%clk 0:00:24.6]} 31... a5 {[%clk
0:00:00.9]} 32. Qg8+ {[%clk 0:00:20]} 1-0

[Event "Live Chess"]
[Site "Chess.com"]
[Date "2024.06.01"]
[Round "-"]
[White "GerardATHart"]
[Black "Ferrarifan27"]
[Result "0-1"]
[WhiteElo "1426"]
[BlackElo "2067"]
[TimeControl "300"]
[EndTime "11:38:12 PDT"]
[Termination "Ferrarifan27 won by resignation"]

1. e4 {[%clk 0:04:55.1]} 1... e5 {[%clk 0:04:58.7]} 2. Nf3 {[%clk 0:04:52.7]}
2... Nc6 {[%clk 0:04:57.8]} 3. Bb5 {[%clk 0:04:51.1]} 3... a6 {[%clk 0:04:56.7]}
4. Ba4 {[%clk 0:04:49.5]} 4... Nf6 {[%clk 0:04:56]} 5. d3 {[%clk 0:04:48]} 5...
b5 {[%clk 0:04:44.4]} 6. Bb3 {[%clk 0:04:46.2]} 6... Bc5 {[%clk 0:04:41.6]} 7.
c3 {[%clk 0:04:43.9]} 7... O-O {[%clk 0:04:39]} 8. O-O {[%clk 0:04:42]} 8... d6
{[%clk 0:04:37.9]} 9. Nbd2 {[%clk 0:04:40]} 9... Bg4 {[%clk 0:04:35.9]} 10. h3
{[%clk 0:04:38.2]} 10... Bh5 {[%clk 0:04:34.6]} 11. Re1 {[%clk 0:04:34.3]} 11...
Re8 {[%clk 0:04:29.3]} 12. Nf1 {[%clk 0:04:30.3]} 12... d5 {[%clk 0:04:25.3]}
13. Ng3 {[%clk 0:04:26.8]} 13... dxe4 {[%clk 0:04:22]} 14. dxe4 {[%clk
0:04:18.3]} 14... Bg6 {[%clk 0:04:18.6]} 15. Nh4 {[%clk 0:04:07]} 15... Qxd1
{[%clk 0:04:15.1]} 16. Rxd1 {[%clk 0:04:04.9]} 16... Bxe4 {[%clk 0:04:07.5]} 17.
Nxe4 {[%clk 0:03:51.1]} 17... Nxe4 {[%clk 0:04:07.4]} 18. Nf3 {[%clk 0:03:41.8]}
18... Nxf2 {[%clk 0:04:02.2]} 0-1

[Event "Live Chess"]
[Site "Chess.com"]
[Date "2024.06.01"]
[Round "-"]
[White "ogpin"]
[Black "mrsmarple1968"]
[Result "1-0"]
[WhiteElo "2218"]
[BlackElo "1785"]
[TimeControl "300"]
[EndTime "11:38:15 PDT"]
[Termination "ogpin won on time"]

1. a4 {[%clk 0:04:58.9]} 1... d5 {[%clk 0:04:56.3]} 2. Ra3 {[%clk 0:04:58.8]}
2... e5 {[%clk 0:04:54.3]} 3. g3 {[%clk 0:04:58.3]} 3... Bxa3 {[%clk 0:04:52.1]}
4. Nxa3 {[%clk 0:04:58.2]} 4... c6 {[%clk 0:04:44.8]} 5. Bg2 {[%clk 0:04:57.2]}
5... Nf6 {[%clk 0:04:42.4]} 6. b3 {[%clk 0:04:56.7]} 6... Be6 {[%clk 0:04:39.9]}
7. Bb2 {[%clk 0:04:56.1]} 7... Qd6 {[%clk 0:04:36.4]} 8. e3 {[%clk 0:04:54.7]}
8... Nbd7 {[%clk 0:04:30]} 9. Ne2 {[%clk 0:04:51.7]} 9... O-O {[%clk 0:04:25]}
10. O-O {[%clk 0:04:51]} 10... a6 {[%clk 0:04:20.8]} 11. h3 {[%clk 0:04:46.9]}
11... b5 {[%clk 0:04:18.9]} 12. f4 {[%clk 0:04:27.8]} 12... exf4 {[%clk
0:03:52.2]} 13. Nxf4 {[%clk 0:04:18.9]} 13... b4 {[%clk 0:03:45.9]} 14. Nb1
{[%clk 0:04:12]} 14... c5 {[%clk 0:03:43.2]} 15. d3 {[%clk 0:03:57.5]} 15...
Rac8 {[%clk 0:03:36]} 16. Nd2 {[%clk 0:03:56.6]} 16... Qb6 {[%clk 0:03:18]} 17.
Qa1 {[%clk 0:03:54.8]} 17... c4 {[%clk 0:03:12.2]} 18. Bd4 {[%clk 0:03:53]}
18... Qc6 {[%clk 0:02:48.4]} 19. bxc4 {[%clk 0:03:46.1]} 19... Qd6 {[%clk
0:02:33.4]} 20. cxd5 {[%clk 0:03:40.9]} 20... Bxd5 {[%clk 0:02:28]} 21. Nxd5
{[%clk 0:03:37.1]} 21... Nxd5 {[%clk 0:02:25.8]} 22. Bxg7 {[%clk 0:03:25.2]}
22... Rfe8 {[%clk 0:02:21.6]} 23. Ne4 {[%clk 0:03:14.7]} 23... Qg6 {[%clk
0:02:09.2]} 24. Bh8 {[%clk 0:02:55.7]} 24... Ne7 {[%clk 0:01:58.6]} 25. Nf6+
{[%clk 0:02:36.8]} 25... Nxf6 {[%clk 0:01:54.6]} 26. Rxf6 {[%clk 0:02:36.7]}
26... Qxg3 {[%clk 0:01:40.7]} 27. Rf4 {[%clk 0:02:18.9]} 27... Rc3 {[%clk
0:00:22.8]} 28. Rg4+ {[%clk 0:02:08.8]} 28... Kf8 {[%clk 0:00:18.8]} 29. Rxg3
{[%clk 0:02:07.4]} 29... Nf5 {[%clk 0:00:12]} 30. Bxc3 {[%clk 0:02:05.1]} 30...
bxc3 {[%clk 0:00:07.9]} 31. Rf3 {[%clk 0:02:02.7]} 31... Nxe3 {[%clk 0:00:05.8]}
32. Qxc3 {[%clk 0:02:02.1]} 32... Nd5 {[%clk 0:00:03.8]} 33. Qc5+ {[%clk
0:01:59.7]} 1-0

[Event "Live Chess"]
[Site "Chess.com"]
[Date "2024.06.01"]
[Round "-"]
[White "viktorskliarov"]
[Black "Pandreq"]
[Result "1-0"]
[WhiteElo "2646"]
[BlackElo "1130"]
[TimeControl "300"]
[EndTime "11:38:21 PDT"]
[Termination "viktorskliarov won by resignation"]

1. e4 {[%clk 0:04:55.9]} 1... Nf6 {[%clk 0:04:58.8]} 2. Nc3 {[%clk 0:04:54.9]}
2... Nc6 {[%clk 0:04:57.5]} 3. d4 {[%clk 0:04:53.6]} 3... d6 {[%clk 0:04:55.8]}
4. f3 {[%clk 0:04:51.7]} 4... e5 {[%clk 0:04:53.8]} 5. Nge2 {[%clk 0:04:51.1]}
5... exd4 {[%clk 0:04:49.6]} 6. Nxd4 {[%clk 0:04:51]} 6... Bd7 {[%clk
0:04:49.2]} 7. Be3 {[%clk 0:04:46.1]} 7... Ne5 {[%clk 0:04:41.2]} 8. Qd2 {[%clk
0:04:40.6]} 8... Be7 {[%clk 0:04:30.7]} 9. O-O-O {[%clk 0:04:38]} 9... O-O
{[%clk 0:04:24.5]} 10. h3 {[%clk 0:04:29.5]} 10... Nh5 {[%clk 0:04:07]} 11. f4
{[%clk 0:04:23.2]} 11... Ng3 {[%clk 0:03:48.1]} 12. fxe5 {[%clk 0:03:47.8]}
12... Nxh1 {[%clk 0:03:33.5]} 13. Bc4 {[%clk 0:03:45.7]} 13... Ng3 {[%clk
0:03:22.8]} 14. Qe1 {[%clk 0:03:14.6]} 14... Bh4 {[%clk 0:02:50.8]} 15. Nf3
{[%clk 0:03:10.9]} 15... Nf5 {[%clk 0:01:56]} 16. Nxh4 {[%clk 0:02:56.1]} 16...
Nxh4 {[%clk 0:01:53.7]} 17. Qg3 {[%clk 0:02:42.5]} 17... dxe5 {[%clk 0:01:44.1]}
18. Bg5 {[%clk 0:02:37.5]} 18... Qe8 {[%clk 0:01:09]} 19. Bxh4 {[%clk
0:02:35.3]} 19... Bc6 {[%clk 0:01:04.4]} 20. Bf6 {[%clk 0:02:33.8]} 20... g6
{[%clk 0:01:01.1]} 21. Qg5 {[%clk 0:02:32]} 1-0

[Event "Live Chess"]
[Site "Chess.com"]
[Date "2024.06.01"]
[Round "-"]
[White "Bob2pen"]
[Black "Sweet-O"]
[Result "1-0"]
[WhiteElo "1892"]
[BlackElo "1538"]
[TimeControl "300"]
[EndTime "11:38:29 PDT"]
[Termination "Bob2pen won by resignation"]

1. e4 {[%clk 0:04:57.8]} 1... e5 {[%clk 0:04:59.1]} 2. Nf3 {[%clk 0:04:56.4]}
2... Nf6 {[%clk 0:04:58.7]} 3. d4 {[%clk 0:04:54.8]} 3... Nxe4 {[%clk
0:04:52.8]} 4. Bd3 {[%clk 0:04:53.5]} 4... f5 {[%clk 0:04:48.8]} 5. Nxe5 {[%clk
0:04:50.7]} 5... Qh4 {[%clk 0:04:41.6]} 6. O-O {[%clk 0:04:41.8]} 6... d6 {[%clk
0:04:34.6]} 7. Nf3 {[%clk 0:04:40.3]} 7... Qg4 {[%clk 0:04:30.5]} 8. Re1 {[%clk
0:04:36.6]} 8... d5 {[%clk 0:04:27.7]} 9. c4 {[%clk 0:04:34.8]} 9... c6 {[%clk
0:04:25.7]} 10. cxd5 {[%clk 0:04:32.7]} 10... cxd5 {[%clk 0:04:25.6]} 11. Nc3
{[%clk 0:04:31.9]} 11... Bb4 {[%clk 0:04:13.3]} 12. Nxd5 {[%clk 0:04:27.1]}
12... Bxe1 {[%clk 0:04:09.7]} 13. Qxe1 {[%clk 0:04:24.7]} 13... Kd7 {[%clk
0:03:58.1]} 14. Ne5+ {[%clk 0:04:21.8]} 1-0

[Event "Live Chess"]
[Site "Chess.com"]
[Date "2024.06.01"]
[Round "-"]
[White "StoreySniper"]
[Black "Crowded_House"]
[Result "1-0"]
[WhiteElo "2557"]
[BlackElo "1755"]
[TimeControl "300"]
[EndTime "11:38:47 PDT"]
[Termination "StoreySniper won by resignation"]

1. e4 {[%clk 0:04:57.8]} 1... e6 {[%clk 0:04:59.2]} 2. Nf3 {[%clk 0:04:55.8]}
2... d5 {[%clk 0:04:58.6]} 3. e5 {[%clk 0:04:55.3]} 3... c5 {[%clk 0:04:56.9]}
4. b4 {[%clk 0:04:54.9]} 4... cxb4 {[%clk 0:04:53.8]} 5. d4 {[%clk 0:04:53.8]}
5... Nc6 {[%clk 0:04:51.8]} 6. a3 {[%clk 0:04:53.1]} 6... bxa3 {[%clk
0:04:47.9]} 7. c3 {[%clk 0:04:52.4]} 7... Nge7 {[%clk 0:04:41.3]} 8. Bd3 {[%clk
0:04:51.2]} 8... Ng6 {[%clk 0:04:40.2]} 9. h4 {[%clk 0:04:47.2]} 9... Nge7
{[%clk 0:04:30.7]} 10. h5 {[%clk 0:04:45.1]} 10... h6 {[%clk 0:04:27.8]} 11. Rh3
{[%clk 0:04:41.3]} 11... Nf5 {[%clk 0:04:26.9]} 12. Bxf5 {[%clk 0:04:39]} 12...
exf5 {[%clk 0:04:25.5]} 13. Rg3 {[%clk 0:04:36.4]} 13... Be6 {[%clk 0:04:22.5]}
14. Bxa3 {[%clk 0:04:34.5]} 14... Bxa3 {[%clk 0:04:20.1]} 15. Nxa3 {[%clk
0:04:30.9]} 15... O-O {[%clk 0:04:13.5]} 16. Qd2 {[%clk 0:04:23.7]} 16... Kh8
{[%clk 0:04:03.6]} 17. Nb5 {[%clk 0:04:19.5]} 17... a6 {[%clk 0:03:48.3]} 18.
Nd6 {[%clk 0:04:17.1]} 18... Qd7 {[%clk 0:03:46.8]} 19. Nh4 {[%clk 0:04:08.1]}
19... Ne7 {[%clk 0:03:40.1]} 20. f4 {[%clk 0:03:19.4]} 20... Nc8 {[%clk
0:03:36.4]} 21. Nxc8 {[%clk 0:03:16.5]} 21... Raxc8 {[%clk 0:03:31.8]} 22. Nf3
{[%clk 0:03:10.6]} 22... Rc4 {[%clk 0:03:12.8]} 23. Qb2 {[%clk 0:03:08.4]} 23...
Rfc8 {[%clk 0:03:09.1]} 24. Nd2 {[%clk 0:03:07.6]} 24... R4c6 {[%clk 0:02:57.2]}
25. Nb3 {[%clk 0:03:05.4]} 25... Qc7 {[%clk 0:02:44.8]} 26. Kd2 {[%clk
0:03:01.5]} 26... Rb6 {[%clk 0:02:32.6]} 27. Qa3 {[%clk 0:02:55.6]} 27... Qc4
{[%clk 0:02:17.7]} 28. Rb1 {[%clk 0:02:36.8]} 28... Qc7 {[%clk 0:01:57.2]} 29.
Rb2 {[%clk 0:02:28.7]} 29... Qc4 {[%clk 0:01:46.7]} 30. Rd3 {[%clk 0:02:16.7]}
30... Qc7 {[%clk 0:01:40]} 31. Nc5 {[%clk 0:02:12.3]} 31... Rxb2+ {[%clk
0:01:38.1]} 32. Qxb2 {[%clk 0:02:11.9]} 32... Qc6 {[%clk 0:01:30.3]} 33. Qxb7
{[%clk 0:02:07.4]} 33... Qxb7 {[%clk 0:01:28.7]} 34. Nxb7 {[%clk 0:02:06.7]}
34... Rb8 {[%clk 0:01:26]} 35. Nc5 {[%clk 0:02:01.6]} 35... Rb2+ {[%clk
0:01:24]} 36. Kc1 {[%clk 0:01:51.4]} 36... Rxg2 {[%clk 0:01:22.4]} 37. Nxa6
{[%clk 0:01:43.6]} 37... Rg4 {[%clk 0:01:19.3]} 38. Rf3 {[%clk 0:01:39.3]} 38...
Rh4 {[%clk 0:01:17.5]} 39. Nc7 {[%clk 0:01:38.2]} 39... Rxh5 {[%clk 0:01:16.1]}
40. c4 {[%clk 0:01:37]} 40... dxc4 {[%clk 0:01:14.6]} 41. d5 {[%clk 0:01:36.3]}
41... Bc8 {[%clk 0:01:12]} 42. Ra3 {[%clk 0:01:33.4]} 42... Rh4 {[%clk
0:01:06.7]} 43. Ra8 {[%clk 0:01:31.9]} 43... Rxf4 {[%clk 0:01:04.5]} 44. Rxc8+
{[%clk 0:01:31]} 44... Kh7 {[%clk 0:01:03.4]} 45. d6 {[%clk 0:01:25.5]} 45...
Rd4 {[%clk 0:01:00.8]} 46. Nb5 {[%clk 0:01:24.3]} 46... Rd5 {[%clk 0:00:59]} 47.
Nc3 {[%clk 0:01:22]} 47... Rxe5 {[%clk 0:00:57.8]} 48. d7 {[%clk 0:01:21]} 48...
Re1+ {[%clk 0:00:55.4]} 49. Kc2 {[%clk 0:01:19.6]} 49... Rh1 {[%clk 0:00:52.8]}
50. d8=Q {[%clk 0:01:18.6]} 50... Rh2+ {[%clk 0:00:52.5]} 51. Kd1 {[%clk
0:01:17.3]} 51... Rh1+ {[%clk 0:00:51.5]} 52. Kd2 {[%clk 0:01:16.6]} 52... Rh2+
{[%clk 0:00:50.9]} 53. Ne2 {[%clk 0:01:16.1]} 53... Rh4 {[%clk 0:00:46.9]} 54.
Qxh4 {[%clk 0:01:13.1]} 1-0

[Event "Live Chess"]
[Site "Chess.com"]
[Date "2024.06.01"]
[Round "-"]
[White "GEMdzq"]
[Black "JanMur7"]
[Result "0-1"]
[WhiteElo "2288"]
[BlackElo "2277"]
[TimeControl "300"]
[EndTime "11:38:49 PDT"]
[Termination "JanMur7 won by checkmate"]

1. e4 {[%clk 0:04:58.3]} 1... g6 {[%clk 0:04:58.5]} 2. d4 {[%clk 0:04:56.8]}
2... Bg7 {[%clk 0:04:57.3]} 3. c3 {[%clk 0:04:55.8]} 3... c5 {[%clk 0:04:56.1]}
4. Nf3 {[%clk 0:04:51.2]} 4... cxd4 {[%clk 0:04:54.7]} 5. cxd4 {[%clk
0:04:50.6]} 5... d5 {[%clk 0:04:54.6]} 6. exd5 {[%clk 0:04:47.1]} 6... Nf6
{[%clk 0:04:52.5]} 7. Nc3 {[%clk 0:04:45.9]} 7... O-O {[%clk 0:04:49]} 8. Bc4
{[%clk 0:04:44.7]} 8... Nbd7 {[%clk 0:04:46.8]} 9. O-O {[%clk 0:04:41.7]} 9...
Nb6 {[%clk 0:04:45.1]} 10. Bb3 {[%clk 0:04:40.4]} 10... Nbxd5 {[%clk 0:04:44.5]}
11. Bg5 {[%clk 0:04:37.2]} 11... h6 {[%clk 0:04:28.2]} 12. Bxf6 {[%clk
0:04:34.6]} 12... Nxf6 {[%clk 0:04:28.1]} 13. Ne5 {[%clk 0:04:33.5]} 13... e6
{[%clk 0:04:15.5]} 14. Qd2 {[%clk 0:04:28.8]} 14... Bd7 {[%clk 0:04:04.7]} 15.
Rfe1 {[%clk 0:04:26.5]} 15... Bc6 {[%clk 0:03:58]} 16. Nxf7 {[%clk 0:04:17.3]}
16... Rxf7 {[%clk 0:03:49.8]} 17. Bxe6 {[%clk 0:04:16.3]} 17... Qd6 {[%clk
0:03:43.7]} 18. Bxf7+ {[%clk 0:03:54.8]} 18... Kxf7 {[%clk 0:03:43.6]} 19. d5
{[%clk 0:03:46.9]} 19... Nxd5 {[%clk 0:03:13]} 20. Nxd5 {[%clk 0:03:40.5]} 20...
Qxd5 {[%clk 0:03:04.1]} 21. Qf4+ {[%clk 0:03:29.7]} 21... Kg8 {[%clk 0:03:00.6]}
22. Qg3 {[%clk 0:03:21.3]} 22... Kh7 {[%clk 0:02:54]} 23. Rad1 {[%clk
0:03:19.5]} 23... Qf7 {[%clk 0:02:35.1]} 24. b3 {[%clk 0:03:09.1]} 24... a5
{[%clk 0:02:29]} 25. h4 {[%clk 0:03:07.9]} 25... h5 {[%clk 0:02:22.7]} 26. Rd6
{[%clk 0:03:03.1]} 26... Re8 {[%clk 0:02:10.6]} 27. Rxe8 {[%clk 0:02:38.5]}
27... Qxe8 {[%clk 0:02:10.5]} 28. Rd1 {[%clk 0:02:25.7]} 28... Qe2 {[%clk
0:02:04]} 29. Rc1 {[%clk 0:01:51.9]} 29... Qxa2 {[%clk 0:01:56.9]} 30. Qd3
{[%clk 0:01:50.1]} 30... a4 {[%clk 0:01:45.6]} 31. Rc5 {[%clk 0:01:49]} 31...
Qxb3 {[%clk 0:01:30.9]} 32. Rxh5+ {[%clk 0:01:46.5]} 32... Bh6 {[%clk
0:01:10.7]} 33. Rxh6+ {[%clk 0:01:35.6]} 33... Kxh6 {[%clk 0:01:07.1]} 34. Qd2+
{[%clk 0:01:34.6]} 34... Kh7 {[%clk 0:01:06.1]} 35. Qg5 {[%clk 0:01:25.8]} 35...
Qf7 {[%clk 0:00:59.5]} 36. h5 {[%clk 0:01:24.6]} 36... gxh5 {[%clk 0:00:58.5]}
37. Qa5 {[%clk 0:01:21]} 37... Qg6 {[%clk 0:00:48.2]} 38. g3 {[%clk 0:01:19.8]}
38... h4 {[%clk 0:00:44.5]} 39. Qe1 {[%clk 0:01:12.5]} 39... hxg3 {[%clk
0:00:43.3]} 40. fxg3 {[%clk 0:01:12.4]} 40... Qe4 {[%clk 0:00:42.1]} 41. Qc3
{[%clk 0:01:04.4]} 41... Qg2# {[%clk 0:00:39.8]} 0-1